lending/lending_fUSD_20241212
["ID","MTS","AMOUNT","RATE_DAILY","PERIOD"]
[345111822,1734023452266,-596.72,0.00021917,2]
[345111823,1734023452275,-511.78,0.00021917,2]
[345111824,1734023452284,-678.43,0.00021917,2]
[345111825,1734023452293,-678.43,0.00021917,2]
[345111826,1734023452303,-678.43,0.00021917,2]
[345111827,1734023452312,-678.43,0.00021917,2]
[345111828,1734023452322,-678.43,0.00021917,2]
[345111829,1734023452331,-678.43,0.00021917,2]
[345111830,1734023452340,-678.43,0.00021917,2]
[345111831,1734023452351,-1713.0,0.00021925,2]
[345111832,1734023452360,-721.01501967,0.00021925,2]
[345111833,1734023452369,-739.32566404,0.00021934,2]
[345111834,1734023452379,-163.6085303,0.00021967,2]
[345111835,1734023452388,-678.43,0.00021967,2]
[345111836,1734023452397,-927.88,0.00021967,2]
[345111837,1734023452407,-500.0,0.00021968,2]
[345111838,1734023452416,-500.0,0.00021968,2]
[345111839,1734023452425,-500.0,0.00021968,2]
[345111840,1734023452435,-500.0,0.00021968,2]
[345111841,1734023452444,-740.19,0.00021968,2]
[345111842,1734023452453,-882.1,0.00021968,2]
[345111843,1734023452464,-988.0,0.00021968,2]
[345111844,1734023452473,-500.0,0.00021968,2]
[345111845,1734023452481,-500.0,0.00021968,2]
[345111846,1734023452491,-1008.59,0.00021968,2]
[345111847,1734023452500,-679.43,0.00021968,2]
[345111848,1734023452509,-500.0,0.00021968,2]
[345111849,1734023452519,-684.82,0.00021968,2]
[345111850,1734023452529,-500.0,0.00021968,2]
[345111851,1734023452539,-500.0,0.00021969,2]
[345111852,1734023452549,-692.45,0.00021969,2]
[345111853,1734023452558,-520.89,0.00021969,2]
[345111854,1734023452567,-1000.0,0.00021969,2]
[345111855,1734023452576,-500.0,0.00021969,2]
[345111856,1734023452586,-500.0,0.00021969,2]
[345111857,1734023452595,-500.0,0.00021969,2]
[345111858,1734023452604,-500.0,0.00021969,2]
[345111859,1734023452613,-500.0,0.00021969,2]
[345111860,1734023452622,-500.0,0.00021969,2]
[345111861,1734023452632,-398.81595374,0.00021969,2]
[345111862,1734023452649,-153.0,0.00019062,2]
[345111863,1734023452658,-186.22404626,0.00021969,2]
[345111864,1734023452667,-500.0,0.00021969,2]
[345111865,1734023452677,-173.57595374,0.00021969,2]
[345111866,1734023452688,-326.42404626,0.00021969,2]
[345111867,1734023452697,-86.85495374,0.00021969,2]
[345111868,1734023452708,-413.14504626,0.00021969,2]
[345111869,1734023452717,-500.0,0.00021969,2]
[345111870,1734023452727,-500.0,0.00021969,2]
[345111871,1734023452735,-503.22,0.00021969,2]
[345111872,1734023452745,-670.37,0.00021969,2]
[345111873,1734023452754,-868.77,0.00021969,2]
[345111874,1734023452764,-650.43,0.00021969,2]
[345111875,1734023452773,-500.0,0.00021969,2]
[345111876,1734023452782,-500.0,0.00021969,2]
[345111877,1734023452792,-525.31390496,0.00021969,2]
[345111878,1734023452800,-1039.22,0.00021969,2]
[345111879,1734023452809,-764.01,0.00021969,2]
[345111880,1734023452817,-500.0,0.00021973,2]
[345111881,1734023452825,-500.0,0.00021973,2]
[345111882,1734023452833,-217.0,0.00022,10]
[345111883,1734023452841,-500.0,0.00022089,2]
[345111884,1734023452850,-697.39,0.00022089,2]
[345111885,1734023452858,-500.0,0.00022089,2]
[345111886,1734023452868,-500.0,0.00022089,2]
[345111887,1734023452877,-500.0,0.00022089,2]
[345111888,1734023452887,-500.0,0.00022089,2]
[345111889,1734023452896,-1201.48,0.00022089,2]
[345111890,1734023452905,-713.76,0.00022089,2]
[345111891,1734023452916,-501.83,0.00022089,2]
[345111892,1734023452926,-1181.18,0.00022089,2]
[345111893,1734023452937,-1301.81,0.00022089,2]
[345111894,1734023452947,-1302.48,0.00022089,2]
[345111895,1734023452959,-500.0,0.00022089,2]
[345111896,1734023452968,-500.0,0.00022089,2]
[345111897,1734023452978,-618.09,0.00022089,2]
[345111898,1734023452988,-598.46,0.00022089,2]
[345111899,1734023452997,-82.66104878,0.00022089,2]
[345111900,1734023453011,-1185.36895122,0.00022089,2]
[345111901,1734023453020,-556.21,0.00022089,2]
[345111902,1734023453030,-369.02079879,0.00022089,2]
[345111906,1734023959147,1000.2,0.00011,2]
[345111908,1734024276483,193.76,0.00010137,2]
[345111909,1734024308559,4270.33,0.0001,2]
[345111910,1734024308607,13825.0,0.0001,2]
[345111911,1734024308667,10000.0,0.0001,2]
[345111912,1734024308697,10000.0,0.0001,2]
[345111913,1734024308735,10000.0,0.0001,2]
[345111914,1734024308759,10000.0,0.0001,2]
[345111915,1734024308782,10000.0,0.0001,2]
[345111916,1734024308804,10000.0,0.0001,2]
[345111917,1734024308826,10000.0,0.0001,2]
[345111918,1734024308848,10000.0,0.0001,2]
[345111919,1734024308874,10000.0,0.0001,2]
[345111920,1734024308896,10000.0,0.0001,2]
[345111921,1734024308919,10000.0,0.0001,2]
[345111922,1734024308942,10000.0,0.0001,2]
[345111923,1734024308965,10000.0,0.0001,2]
[345111924,1734024308988,10000.0,0.0001,2]
[345111925,1734024309010,10000.0,0.0001,2]
[345111926,1734024309032,10000.0,0.0001,2]
[345111927,1734024309055,10000.0,0.0001,2]
[345111928,1734024309077,10000.0,0.0001,2]
[345111929,1734024309099,10000.0,0.0001,2]
[345111930,1734024309125,10000.0,0.0001,2]
[345111931,1734024309148,10000.0,0.0001,2]
[345111932,1734024309171,10000.0,0.0001,2]
[345111933,1734024309194,10000.0,0.0001,2]
[345111934,1734024309216,10000.0,0.0001,2]
[345111935,1734024309239,10000.0,0.0001,2]
[345111936,1734024309265,10000.0,0.0001,2]
[345111937,1734024309287,10000.0,0.0001,2]
[345111938,1734024309310,10000.0,0.0001,2]
[345111939,1734024309332,10000.0,0.0001,2]
[345111940,1734024309361,10000.0,0.0001,2]
[345111941,1734024309386,10000.0,0.0001,2]
[345111942,1734024309408,10000.0,0.0001,2]
[345111943,1734024309430,10000.0,0.0001,2]
[345111944,1734024309454,10000.0,0.0001,2]
[345111945,1734024309476,10000.0,0.0001,2]
[345111946,1734024309499,10000.0,0.0001,2]
[345111947,1734024309524,10000.0,0.0001,2]
[345111948,1734024309556,10000.0,0.0001,2]
[345111949,1734024309586,10000.0,0.0001,2]
[345111950,1734024309618,10000.0,0.0001,2]
[345111951,1734024309645,10000.0,0.0001,2]
[345111952,1734024309671,10000.0,0.0001,2]
[345111953,1734024309697,10000.0,0.0001,2]
[345111954,1734024309725,10000.0,0.0001,2]
[345111955,1734024309753,10000.0,0.0001,2]
[345111956,1734024309779,10000.0,0.0001,2]
[345111957,1734024309806,10000.0,0.0001,2]
[345111958,1734024309831,10000.0,0.0001,2]
[345111959,1734024309865,10000.0,0.0001,2]
[345111960,1734024309893,10000.0,0.0001,2]
[345111961,1734024309920,10000.0,0.0001,2]
[345111962,1734024309948,10000.0,0.0001,2]
[345111963,1734024309975,10000.0,0.0001,2]
[345111964,1734024310015,1334.0,0.0001,2]
[345111968,1734024425546,300.0,9.5e-05,3]
[345111969,1734024427561,700.0,9.6e-05,3]
[345111971,1734024449115,-1100.0,9.7e-05,3]
[345111972,1734024449137,-825.59702876,9.8e-05,3]
[345111992,1734024546200,-200.0,9.751e-05,2]
[345111993,1734024546222,-574.40297124,9.8e-05,3]
[345111994,1734024546243,-205.0,9.8e-05,2]
[345111995,1734024546264,-7552.06844041,9.8e-05,2]
[345111996,1734024546285,-1800.0,9.9e-05,3]
[345111997,1734024546305,-821.08913228,9.9e-05,2]
[345111998,1734024546334,-500.0,9.973e-05,2]
[345111999,1734024546355,-500.0,9.973e-05,2]
[345112000,1734024546375,-500.98693893,9.973e-05,2]
[345112001,1734024546396,-1006.73624498,9.999e-05,3]
[345112002,1734024546416,-2544.06151632,0.0001,2]
[345112003,1734024546439,-14220.65341584,0.0001,2]
[345112004,1734024548283,-424901.8144,0.0001,2]
[345112005,1734024549142,-23066.81572209,0.0001,2]
[345112006,1734024550222,-92265.01452,0.0001,2]
[345112007,1734024554128,-205.9894376,9.9e-05,2]
[345112008,1734024554149,-500.0,9.973e-05,2]
[345112009,1734024554170,-117401.90214351,0.0001,2]
[345112010,1734024557176,-276887.6614,0.0001,2]
[345112011,1734024561098,-38383.08786603,0.0001,2]
[345112012,1734024561127,-39764.02160574,0.0001,2]
[345112013,1734024562089,-6514.43719641,0.0001,2]
[345112014,1734024568112,-47434.692051,0.0001,2]
[345112044,1734024631706,-150.1569955,9.95e-05,2]
[345112045,1734024631716,-300.0,9.999e-05,2]
[345112046,1734024631726,-150.0,9.999e-05,2]
[345112047,1734024631735,-39.23924894,0.0001,2]
[345112048,1734024631785,-486.87103,0.0001,2]
[345112049,1734024631949,-5067.9966128,0.0001,2]
[345112050,1734024632032,-1248.6900054,0.0001,2]
[345112051,1734024632045,-786.64180338,0.0001,2]
[345112052,1734024632056,-1207.44003,0.0001,2]
[345112074,1734024637686,-6074220.62543172,0.0001,2]
[345112075,1734024637696,-300.0,0.0001,3]
[345112076,1734024637706,-205.9894376,0.0001,2]
[345112077,1734024637716,-2420.07804298,0.0001,2]
[345112078,1734024637727,-43254.72484321,0.0001,2]
[345112079,1734024637744,-231.14804883,0.0001,2]
[345112080,1734024637754,-3570.15622842,0.0001,2]
[345112081,1734024637763,-577.86054974,0.0001,2]
[345112082,1734024637772,-577.86054974,0.0001,2]
[345112083,1734024637781,-577.86054974,0.0001,2]
[345112084,1734024637791,-199.0,0.000101,2]
[345112085,1734024637800,-198.0,0.000101,2]
[345112086,1734024637809,-174.37,0.00010253,2]
[345112087,1734024637819,-630.92288133,0.000109,2]
[345112088,1734024637828,-157.598812,0.00010958,2]
[345112089,1734024637837,-157.598812,0.00010958,2]
[345112090,1734024637848,-1000.0,0.00010999,2]
[345112091,1734024637858,-420.0,0.00010999,2]
[345112092,1734024637869,-150.0,0.00010999,2]
[345112093,1734024637878,-5800.0,0.00011092,2]
[345112094,1734024637888,-1308.70134818,0.000118,2]
[345112095,1734024637899,-1308.70134818,0.000118,2]
[345112096,1734024637908,-1308.70134818,0.000118,2]
[345112097,1734024637918,-1308.70134818,0.000118,2]
[345112098,1734024637927,-1308.70134818,0.000118,2]
[345112099,1734024637937,-1308.70134818,0.000118,2]
[345112100,1734024637947,-1308.70134818,0.000118,2]
[345112101,1734024637957,-1308.70134818,0.000118,2]
[345112102,1734024637967,-1308.70134818,0.000118,2]
[345112103,1734024637976,-1308.70134818,0.000118,2]
[345112104,1734024637986,-1308.70134818,0.000118,2]
[345112105,1734024637996,-1308.70134818,0.000118,2]
[345112106,1734024638006,-1308.70134818,0.000118,2]
[345112107,1734024638016,-1308.70134818,0.000118,2]
[345112108,1734024638026,-1308.70134818,0.000118,2]
[345112109,1734024638035,-1308.70134818,0.000118,2]
[345112110,1734024638046,-1308.70134818,0.000118,2]
[345112111,1734024638056,-1308.70134818,0.000118,2]
[345112112,1734024638067,-1308.70134818,0.000118,2]
[345112113,1734024638077,-1308.7,0.000118,2]
[345112114,1734024638087,-500.0,0.00011873,2]
[345112115,1734024638098,-9402368.04732962,0.000119,2]
[345112116,1734024638109,-587.0,0.00012099,2]
[345112117,1734024638120,-150.0,0.00012266,2]
[345112119,1734024638131,-33429.34029958,0.00012399,2]
[345112120,1734024638141,-500.0,0.00012421,2]
[345112122,1734024638150,-160.71,0.0001271,2]
[345112123,1734024638160,-160.9,0.00013179,2]
[345112124,1734024638170,-786.23,0.00013179,2]
[345112125,1734024638180,-192.42,0.00013234,2]
[345112126,1734024638189,-823.0,0.00013309,2]
[345112127,1734024638199,-250.0,0.00013658,2]
[345112128,1734024638209,-157.598812,0.00013698,2]
[345112130,1734024638219,-5011.0,0.00013699,2]
[345112131,1734024638228,-800.0,0.00013699,2]
[345112133,1734024638238,-800.0,0.00013699,2]
[345112134,1734024638248,-800.0,0.00013699,2]
[345112136,1734024638257,-399.81585027,0.00013699,2]
[345112137,1734024638267,-1152.0,0.0001464,2]
[345112138,1734024638278,-160.71,0.00014808,2]
[345112139,1734024638288,-2420.07804298,0.000149,2]
[345112140,1734024638298,-43254.7248432,0.000149,2]
[345112141,1734024638307,-231.14804883,0.000149,2]
[345112142,1734024638317,-300.0,0.00015,2]
[345112143,1734024638327,-157.598812,0.00015054,2]
[345112144,1734024638339,-296.26814237,0.000151,2]
[345112145,1734024638350,-1221.99178315,0.00015235,2]
[345112146,1734024638360,-1517.64,0.000153,2]
[345112147,1734024638372,-174.37,0.00015379,2]
[345112148,1734024638383,-200.0,0.00015381,2]
[345112149,1734024638393,-1613.0,0.00016103,2]
[345112150,1734024638403,-668.84,0.00016658,30]
[345112151,1734024638413,-4538.0,0.000169,2]
[345112152,1734024638427,-664.45,0.00017488,2]
[345112153,1734024638437,-295.0,0.00017714,2]
[345112154,1734024638447,-190.55,0.000179,2]
[345112155,1734024638456,-190.55,0.000179,2]
[345112156,1734024638466,-190.55,0.000179,2]
[345112157,1734024638476,-2500.39,0.00017996,2]
[345112158,1734024638486,-168.09,0.00018,2]
[345112159,1734024638496,-249.22,0.00018705,2]
[345112160,1734024638506,-53697.7715085,0.0001881,3]
[345112161,1734024638516,-214.3904149,0.000189,2]
[345112162,1734024638526,-214.3904149,0.000189,2]
[345112163,1734024638536,-1500.0,0.00018999,2]
[345112164,1734024638546,-54450.1,0.00019117,2]
[345112165,1734024638556,-320.0,0.00019117,2]
[345112166,1734024638566,-396.59,0.00019133,2]
[345112167,1734024638575,-302.5,0.00019164,7]
[345112168,1734024638585,-987.01,0.00019178,2]
[345112169,1734024638595,-500.0,0.00019178,2]
[345112170,1734024638604,-211.55,0.00019178,2]
[345112171,1734024638615,-1437.18,0.00019178,2]
[345112172,1734024638624,-239.45828348,0.00019178,2]
[345112173,1734024638633,-500.0,0.00019178,2]
[345112174,1734024638644,-500.0,0.00019178,2]
[345112175,1734024638653,-500.0,0.00019178,2]
[345112176,1734024638666,-1075.73,0.00019178,2]
[345112177,1734024638676,-500.0,0.00019178,2]
[345112178,1734024638685,-500.0,0.00019178,2]
[345112179,1734024638695,-500.0,0.00019178,2]
[345112180,1734024638705,-500.0,0.00019178,2]
[345112181,1734024638715,-500.0,0.00019178,2]
[345112182,1734024638724,-23900.0,0.00019188,2]
[345112183,1734024638734,-668.84,0.00019242,30]
[345112184,1734024638744,-150.0,0.00019261,2]
[345112185,1734024638753,-161.37,0.00019278,2]
[345112186,1734024638763,-387.69,0.00019322,2]
[345112187,1734024638773,-1000.0,0.00019348,2]
[345112188,1734024638783,-18597.35049325,0.000194,2]
[345112189,1734024638793,-250.0,0.00019438,2]
[345112190,1734024638803,-987.01,0.00019452,2]
[345112191,1734024638813,-500.0,0.00019452,2]
[345112192,1734024638822,-1437.18,0.00019452,2]
[345112193,1734024638832,-500.0,0.00019452,2]
[345112194,1734024638841,-500.0,0.00019452,2]
[345112195,1734024638851,-500.0,0.00019452,2]
[345112196,1734024638860,-1075.73,0.00019452,2]
[345112197,1734024638873,-500.0,0.00019452,2]
[345112198,1734024638884,-500.0,0.00019452,2]
[345112199,1734024638894,-500.0,0.00019452,2]
[345112200,1734024638904,-500.0,0.00019452,2]
[345112201,1734024638914,-500.0,0.00019452,2]
[345112202,1734024638924,-987.01,0.00019726,2]
[345112203,1734024638933,-367.36726352,0.00019726,2]
[345112204,1734024638942,-1437.18,0.00019726,2]
[345112205,1734024638952,-500.0,0.00019726,2]
[345112206,1734024638962,-500.0,0.00019726,2]
[345112207,1734024638972,-500.0,0.00019726,2]
[345112208,1734024638982,-1075.73,0.00019726,2]
[345112209,1734024638992,-500.0,0.00019726,2]
[345112210,1734024639001,-500.0,0.00019726,2]
[345112211,1734024639011,-500.0,0.00019726,2]
[345112212,1734024639020,-500.0,0.00019726,2]
[345112213,1734024639030,-500.0,0.00019726,2]
[345112214,1734024639041,-664.45,0.00019752,2]
[345112215,1734024639050,-160.9,0.00019768,2]
[345112216,1734024639060,-500.0,0.00019777,2]
[345112217,1734024639069,-320.0,0.00019824,2]
[345112218,1734024639078,-11823.2715978,0.00019866,2]
[345112219,1734024639088,-2420.07804298,0.000199,2]
[345112220,1734024639097,-43254.7248432,0.000199,2]
[345112221,1734024639107,-231.14804883,0.000199,2]
[345112222,1734024639118,-153.0,0.0001992,2]
[345112223,1734024639127,-153.0,0.0001992,2]
[345112224,1734024639136,-153.0,0.0001992,2]
[345112225,1734024639145,-153.0,0.0001992,2]
[345112226,1734024639155,-153.0,0.0001992,2]
[345112227,1734024639164,-153.0,0.0001992,2]
[345112228,1734024639173,-153.0,0.0001992,2]
[345112229,1734024639183,-153.0,0.0001992,2]
[345112230,1734024639193,-153.0,0.0001992,2]
[345112231,1734024639204,-153.0,0.0001992,2]
[345112232,1734024639213,-153.0,0.0001992,2]
[345112233,1734024639223,-153.0,0.0001992,2]
[345112234,1734024639234,-153.0,0.0001992,2]
[345112235,1734024639245,-153.0,0.0001992,2]
[345112236,1734024639255,-153.0,0.0001992,2]
[345112237,1734024639265,-153.0,0.0001992,2]
[345112238,1734024639276,-153.0,0.0001992,2]
[345112239,1734024639286,-153.0,0.0001992,2]
[345112240,1734024639297,-153.0,0.0001992,2]
[345112241,1734024639307,-153.0,0.0001992,2]
[345112242,1734024639316,-153.0,0.0001992,2]
[345112243,1734024639325,-153.0,0.0001992,2]
[345112244,1734024639337,-153.0,0.0001992,2]
[345112245,1734024639349,-153.0,0.0001992,2]
[345112246,1734024639359,-153.0,0.0001992,2]
[345112247,1734024639372,-153.0,0.0001992,2]
[345112248,1734024639387,-153.0,0.0001992,2]
[345112249,1734024639397,-153.0,0.0001992,2]
[345112250,1734024639407,-153.0,0.0001992,2]
[345112251,1734024639417,-153.0,0.0001992,2]
[345112252,1734024639428,-153.0,0.0001992,2]
[345112253,1734024639438,-153.0,0.0001992,2]
[345112254,1734024639448,-153.0,0.0001992,2]
[345112255,1734024639458,-153.0,0.0001992,2]
[345112256,1734024639467,-153.0,0.0001992,2]
[345112257,1734024639477,-153.0,0.0001992,2]
[345112258,1734024639487,-153.0,0.0001992,2]
[345112259,1734024639497,-153.0,0.0001992,2]
[345112260,1734024639506,-153.0,0.0001992,2]
[345112261,1734024639516,-153.0,0.0001992,2]
[345112262,1734024639526,-153.0,0.0001992,2]
[345112263,1734024639535,-153.0,0.0001992,2]
[345112264,1734024639545,-153.0,0.0001992,2]
[345112265,1734024639554,-153.0,0.0001992,2]
[345112266,1734024639563,-153.0,0.0001992,2]
[345112267,1734024639573,-153.0,0.0001992,2]
[345112268,1734024639582,-153.0,0.0001992,2]
[345112269,1734024639591,-153.0,0.0001992,2]
[345112270,1734024639601,-153.0,0.0001992,2]
[345112271,1734024639611,-153.0,0.0001992,2]
[345112272,1734024639620,-153.0,0.0001992,2]
[345112274,1734024639630,-153.0,0.0001992,2]
[345112275,1734024639806,-153.0,0.0001992,2]
[345112276,1734024639819,-153.0,0.0001992,2]
[345112277,1734024639830,-153.0,0.0001992,2]
[345112278,1734024639839,-153.0,0.0001992,2]
[345112279,1734024639848,-153.0,0.0001992,2]
[345112280,1734024639858,-153.0,0.0001992,2]
[345112281,1734024639867,-153.0,0.0001992,2]
[345112282,1734024639877,-153.0,0.0001992,2]
[345112283,1734024639887,-153.0,0.0001992,2]
[345112284,1734024639896,-153.0,0.0001992,2]
[345112285,1734024639906,-153.0,0.0001992,2]
[345112286,1734024639916,-153.0,0.0001992,2]
[345112287,1734024639926,-153.0,0.0001992,2]
[345112288,1734024639935,-153.0,0.0001992,2]
[345112289,1734024639945,-153.0,0.0001992,2]
[345112290,1734024639955,-153.0,0.0001992,2]
[345112291,1734024639965,-153.0,0.0001992,2]
[345112292,1734024639974,-153.0,0.0001992,2]
[345112293,1734024639988,-153.0,0.0001992,2]
[345112294,1734024639997,-153.0,0.0001992,2]
[345112295,1734024640007,-153.0,0.0001992,2]
[345112296,1734024640018,-153.0,0.0001992,2]
[345112297,1734024640027,-153.0,0.0001992,2]
[345112298,1734024640037,-153.0,0.0001992,2]
[345112299,1734024640047,-153.0,0.0001992,2]
[345112300,1734024640057,-153.0,0.0001992,2]
[345112301,1734024640067,-153.0,0.0001992,2]
[345112302,1734024640077,-153.0,0.0001992,2]
[345112303,1734024640087,-153.0,0.0001992,2]
[345112304,1734024640096,-153.0,0.0001992,2]
[345112305,1734024640106,-153.0,0.0001992,2]
[345112306,1734024640115,-153.0,0.0001992,2]
[345112307,1734024640125,-153.0,0.0001992,2]
[345112308,1734024640138,-153.0,0.0001992,2]
[345112309,1734024640148,-153.0,0.0001992,2]
[345112310,1734024640157,-153.0,0.0001992,2]
[345112311,1734024640167,-156.0,0.0001992,2]
[345112312,1734024640177,-156.0,0.0001992,2]
[345112313,1734024640186,-156.0,0.0001992,2]
[345112314,1734024640195,-156.0,0.0001992,2]
[345112315,1734024640205,-156.0,0.0001992,2]
[345112316,1734024640215,-156.0,0.0001992,2]
[345112317,1734024640224,-156.0,0.0001992,2]
[345112318,1734024640234,-156.0,0.0001992,2]
[345112319,1734024640244,-156.0,0.0001992,2]
[345112320,1734024640254,-156.0,0.0001992,2]
[345112321,1734024640264,-156.0,0.0001992,2]
[345112322,1734024640273,-156.0,0.0001992,2]
[345112323,1734024640283,-156.0,0.0001992,2]
[345112324,1734024640293,-156.0,0.0001992,2]
[345112325,1734024640303,-156.0,0.0001992,2]
[345112326,1734024640313,-156.0,0.0001992,2]
[345112327,1734024640323,-156.0,0.0001992,2]
[345112328,1734024640334,-156.0,0.0001992,2]
[345112329,1734024640348,-156.0,0.0001992,2]
[345112330,1734024640358,-156.0,0.0001992,2]
[345112331,1734024640367,-156.0,0.0001992,2]
[345112332,1734024640377,-156.0,0.0001992,2]
[345112333,1734024640387,-156.0,0.0001992,2]
[345112334,1734024640396,-156.0,0.0001992,2]
[345112335,1734024640406,-156.0,0.0001992,2]
[345112336,1734024640415,-156.0,0.0001992,2]
[345112337,1734024640424,-156.0,0.0001992,2]
[345112338,1734024640435,-156.0,0.0001992,2]
[345112339,1734024640445,-156.0,0.0001992,2]
[345112340,1734024640455,-156.0,0.0001992,2]
[345112341,1734024640464,-156.0,0.0001992,2]
[345112342,1734024640474,-156.0,0.0001992,2]
[345112343,1734024640484,-156.0,0.0001992,2]
[345112344,1734024640495,-156.0,0.0001992,2]
[345112345,1734024640505,-156.0,0.0001992,2]
[345112346,1734024640515,-156.0,0.0001992,2]
[345112347,1734024640525,-156.0,0.0001992,2]
[345112348,1734024640534,-156.0,0.0001992,2]
[345112349,1734024640544,-156.0,0.0001992,2]
[345112350,1734024640553,-156.0,0.0001992,2]
[345112351,1734024640562,-156.0,0.0001992,2]
[345112352,1734024640572,-156.0,0.0001992,2]
[345112353,1734024640581,-156.0,0.0001992,2]
[345112354,1734024640590,-156.0,0.0001992,2]
[345112355,1734024640599,-156.0,0.0001992,2]
[345112356,1734024640609,-156.0,0.0001992,2]
[345112357,1734024640624,-156.0,0.0001992,2]
[345112358,1734024640635,-156.0,0.0001992,2]
[345112359,1734024640644,-156.0,0.0001992,2]
[345112360,1734024640654,-156.0,0.0001992,2]
[345112361,1734024640665,-156.0,0.0001992,2]
[345112362,1734024640676,-156.0,0.0001992,2]
[345112363,1734024640685,-156.0,0.0001992,2]
[345112364,1734024640696,-156.0,0.0001992,2]
[345112365,1734024640705,-156.0,0.0001992,2]
[345112366,1734024640715,-156.0,0.0001992,2]
[345112367,1734024640724,-156.0,0.0001992,2]
[345112368,1734024640733,-156.0,0.0001992,2]
[345112369,1734024640743,-156.0,0.0001992,2]
[345112370,1734024640753,-156.0,0.0001992,2]
[345112371,1734024640762,-156.0,0.0001992,2]
[345112372,1734024640771,-156.0,0.0001992,2]
[345112373,1734024640780,-156.0,0.0001992,2]
[345112374,1734024640790,-156.0,0.0001992,2]
[345112375,1734024640799,-156.0,0.0001992,2]
[345112376,1734024640809,-156.0,0.0001992,2]
[345112377,1734024640818,-156.0,0.0001992,2]
[345112378,1734024640828,-156.0,0.0001992,2]
[345112379,1734024640838,-156.0,0.0001992,2]
[345112380,1734024640847,-156.0,0.0001992,2]
[345112381,1734024640859,-156.0,0.0001992,2]
[345112382,1734024640871,-156.0,0.0001992,2]
[345112383,1734024640881,-156.0,0.0001992,2]
[345112384,1734024640890,-156.0,0.0001992,2]
[345112385,1734024640899,-156.0,0.0001992,2]
[345112386,1734024640908,-156.0,0.0001992,2]
[345112387,1734024640917,-156.0,0.0001992,2]
[345112388,1734024640927,-156.0,0.0001992,2]
[345112389,1734024640936,-156.0,0.0001992,2]
[345112390,1734024640945,-156.0,0.0001992,2]
[345112391,1734024640954,-156.0,0.0001992,2]
[345112392,1734024640963,-156.0,0.0001992,2]
[345112393,1734024640972,-156.0,0.0001992,2]
[345112394,1734024640982,-156.0,0.0001992,2]
[345112395,1734024640992,-156.0,0.0001992,2]
[345112396,1734024641001,-156.0,0.0001992,2]
[345112397,1734024641011,-156.0,0.0001992,2]
[345112398,1734024641020,-153.0,0.0001992,2]
[345112399,1734024641029,-153.0,0.0001992,2]
[345112400,1734024641038,-153.0,0.0001992,2]
[345112401,1734024641048,-153.0,0.0001992,2]
[345112402,1734024641058,-156.0,0.0001992,2]
[345112403,1734024641067,-156.0,0.0001992,2]
[345112404,1734024641077,-514.0,0.0001997,2]